Cogmind - Beta 10.2 @@@ ROGUE MODE // 2021.09.04 @ 00:11:05 Player: Savant Result: Destroyed by G-47 Trooper with Particle Gun Performance ------------- Evolutions (0) 0 Regions Visited (2) 400 Robots Destroyed (28) 140 Value Destroyed (746) 746 Prototype IDs (4) 80 Alien Tech Used (0) 0 Bonus (0) 0 TOTAL SCORE: 1366 Bonus ------- None Cogmind --------- Core Integrity 0/250 Matter 268/300 Energy 238/250 System Corruption 0% Temperature Cool (9) Movement Walking (150) Ox1 Location -10/Mines Parts ------- > --- POWER (1) -------- Ion Engine > --- PROPULSION (2) --- Aluminum Leg Aluminum Leg > --- UTILITY (2) ------ Medium Storage Unit Large Storage Unit > --- WEAPON (2) ------- Heavy Assault Rifle Heavy Assault Rifle > --- INVENTORY (14) --- Light Ion Engine Light Treads Aluminum Leg Wheel Improved Heat Sink Large Storage Unit High-capacity Storage Unit High-capacity Matter Pod (154) Armor Integrity Analyzer EM Shotgun EM Shotgun Grenade Launcher Mining Claw Peak State ------------ > --- POWER ------------ Light Ion Engine > --- PROPULSION ------- Aluminum Leg Aluminum Leg > --- UTILITY ---------- Improved Heat Sink High-capacity Storage Unit > --- WEAPON ----------- Heavy Assault Rifle Heavy Assault Rifle > --- INVENTORY -------- Light Ion Engine Light Treads Wheel Wheel Heat Sink Structural Scanner Armor Integrity Analyzer Assault Rifle Heavy Assault Rifle Heavy Assault Rifle Mining Laser [Rating: 12] Favorites ----------- Power Light Ion Engine Engine Light Ion Engine Propulsion Aluminum Leg Treads Light Treads Leg Aluminum Leg Utility Large Storage Unit Device Structural Scanner Storage Large Storage Unit Weapon Heavy Assault Rifle Energy Gun Medium Laser Ballistic Gun Heavy Assault Rifle Launcher Grenade Launcher Special Weapon Mining Laser Slashing Weapon Mining Claw Build | -11 -10 -10 ------- Run | Scr Mat Min Slots Evolved . | . . . Power . | . . . Propulsion . | . . . Utility . | . . . Weapon . | . . . Parts Attached 36 | 6 20 10 Power 3 | 1 1 1 Engine 3 | 1 1 1 Core . | . . . Reactor . | . . . Propulsion 9 | 2 2 5 Treads 1 | . . 1 Leg 8 | 2 2 4 Wheel . | . . . Hover . | . . . Flight . | . . . Utility 9 | 1 8 . Device 3 | . 3 . Storage 6 | 1 5 . Processor . | . . . Hackware . | . . . Protection . | . . . Artifact . | . . . Weapon 15 | 2 9 4 Energy Gun 2 | 1 . 1 Energy Cannon . | . . . Ballistic Gun 9 | 1 6 2 Ballistic Cannon . | . . . Launcher 1 | . 1 . Special Weapon 1 | . 1 . Impact Weapon . | . . . Slashing Weapon 2 | . 1 1 Piercing Weapon . | . . . Special Melee Weapon . | . . . Unidentified Prototypes . | . . . Parts Lost 4 | . 2 2 Power 1 | . 1 . Propulsion 1 | . . 1 Utility . | . . . Weapon 2 | . 1 1 Highest Loss Streak 1 | . 1 1 Average Slot Usage (%) 99 | . 99 98 Engine 13 | . 13 14 Leg 27 | . 28 27 Device 5 | . 6 . Storage 22 | . 21 28 Energy Gun 1 | . 2 . Ballistic Gun 25 | . 25 26 Naked Turns . | . . . Heaviest Build 42 | 11 42 35 Greatest Support 20 | 20 20 20 Greatest Overweight (x) 2 | . 2 1 Average Overweight (x) 1 | . 1 1 Largest Inventory Capacity 18 | 6 18 14 Average Capacity 12 | 5 12 14 Most Carried 14 | 5 14 14 Average Carried 11 | 3 11 13 Final Capacity 14 | 6 14 14 Final Carried 14 | 5 14 13 Class Distribution -------------------- 100% | Mutant Dominant Class ---------------- Mutant | -10/Materials Mutant | -10/Mines Resources | -11 -10 -10 ----------- Run | Scr Mat Min Matter Collected 1018 | 228 456 334 Remotely . | . . . Salvage Created 985 | . 623 362 Parts 72 | . 46 26 Haulers Intercepted 1 | . 1 . Recyclers Shooed 1 | . 1 . Parts Field Recycled . | . . . Retrieved Matter . | . . . Parts Self-Destructed . | . . . Prevented . | . . . Kills | -11 -10 -10 ------- Run | Scr Mat Min Combat Hostiles Destroyed 25 | . 14 11 Guns 25 | . 14 11 Classes Destroyed 7 | . 6 1 Worker 1 | . 1 . Hauler 1 | . 1 . Recycler 1 | . 1 . Watcher 1 | . 1 . Swarmer 6 | . 3 3 Grunt 18 | . 11 7 Assembled 1 | . . 1 Best Kill Streak 5 | . 3 5 Combat Bots Only 5 | . 3 5 Max Kills in Single Turn 2 | . 2 2 Gunslinging 1 | . 1 1 Exploded . | . . . Melee . | . . . Uniques/NPCs Destroyed . | . . . Combat | -11 -10 -10 -------- Run | Scr Mat Min Damage Taken 1021 | . 482 539 Core 258 | . 124 134 Absorbed by Shields . | . . . Core Remaining (%) 100 | 100 . . Volleys Fired 66 | . 45 21 Largest 2 | . 2 2 Hottest 100 | . 100 68 Shots Fired 126 | . 84 42 Gun 121 | . 79 42 Cannon . | . . . Launcher 2 | . 2 . Special 3 | . 3 . Kinetic 112 | . 72 40 Thermal 10 | . 10 . Explosive 2 | . 2 . Electromagnetic 2 | . . 2 Robot Hit Streak 9 | . 7 9 Robot Miss Streak 4 | . 4 2 Penetration Max . | . . . Secondary Targets 9 | . 3 6 Max Gunslinging Chain 1 | . 1 1 Shots Hit Robots 72 | . 42 30 Core Hits 42 | . 25 17 Critical Hits 1 | . 1 . Critical Kills 1 | . 1 . Critical Parts Destroyed . | . . . Melee Attacks 6 | . 3 3 Impact . | . . . Slashing 6 | . 3 3 Piercing . | . . . Sneak Attacks . | . . . Combat Hostiles . | . . . Follow-up Attacks . | . . . Damage Inflicted 1127 | . 681 446 Guns 1127 | . 681 446 Cannons . | . . . Explosions . | . . . Melee . | . . . Ramming . | . . . Kinetic 1047 | . 631 416 Thermal 50 | . 50 . Explosive . | . . . Electromagnetic 30 | . . 30 Impact . | . . . Slashing . | . . . Piercing . | . . . Highest Corruption . | . . . Average Corruption . | . . . Corruption Purged . | . . . Overload Shots . | . . . Overflow Damage . | . . . Projectiles . | . . . Explosions . | . . . Melee . | . . . Knockbacks . | . . . Impact . | . . . Kinetic . | . . . Secondary . | . . . Self-Inflicted Damage . | . . . Shots . | . . . Rammed . | . . . Targets Rammed . | . . . Kicked . | . . . Crushed . | . . . Highest Temperature 90 | . 90 27 Average Temperature 17 | . 22 7 Received Heat Transfer 438 | . 225 213 Siege Activations . | . . . Robots Corrupted . | . . . Combat Hostiles . | . . . Parts Fried . | . . . Impact Corruptions . | . . . Robots Melted . | . . . Combat Hostiles . | . . . Parts Melted . | . . . Heat Transferred 148 | . 148 . Parts Sabotaged . | . . . Parts Stolen . | . . . Parts Stripped . | . . . Power Chain Reactions . | . . . Missiles Intercepted . | . . . Alert | -11 -10 -10 ------- Run | Scr Mat Min Peak Influence 245 | . 214 245 Initial . | . . . Average 80 | . 75 109 Maximum Alert Level 1 | . 1 1 Low Security (%) 91 | 100 89 94 Level 1 8 | . 10 5 Level 2 . | . . . Level 3 . | . . . Level 4 . | . . . Level 5 . | . . . High Security . | . . . Max Security . | . . . Squads Dispatched 3 | . 3 . Investigation 2 | . 2 . Extermination . | . . . Reinforcement 1 | . 1 . Assault . | . . . Garrison . | . . . Intercept . | . . . Construction Impeded . | . . . Haulers Reinforced . | . . . Stealth | -11 -10 -10 --------- Run | Scr Mat Min Distress Signals 4 | . 3 1 Communications Jammed . | . . . Distress Signals . | . . . Times Spotted 41 | . 27 14 Peak Tracking Total 5 | . 5 3 Tactical Retreats 4 | . 2 2 Traps | -11 -10 -10 ------- Run | Scr Mat Min Traps Triggered . | . . . Indirectly . | . . . Trap Hack Attempts . | . . . Triggered . | . . . Disarmed . | . . . Reprogrammed . | . . . Reused 1 | . . 1 Traps Extracted . | . . . Installed 2 | . . 2 Triggered 1 | . . 1 Machines | -11 -10 -10 ---------- Run | Scr Mat Min Machines Disabled 1 | . 1 . Max in Single Turn 1 | . 1 . Machines Sabotaged . | . . . Garrisons Compromised . | . . . Overloaded Fab Kills . | . . . Fab Network Shutdowns . | . . . Hacking | -11 -10 -10 --------- Run | Scr Mat Min Machines Accessed 7 | . 7 . Terminals 5 | . 5 . Fabricators . | . . . Repair Stations . | . . . Recycling Units 2 | . 2 . Scanalyzers . | . . . Garrison Access . | . . . Total Hacks 28 | . 28 . Successful 16 | . 16 . Failed 12 | . 12 . Catastrophic . | . . . Database Lockouts . | . . . Manual 18 | . 18 . Terminals 25 | . 25 . Fabricators . | . . . Repair Stations . | . . . Recycling Units 3 | . 3 . Scanalyzers . | . . . Garrison Access . | . . . Terminal Hacks 8 | . 8 . Robot Analysis 1 | . 1 . Prototype ID Bank 2 | . 2 . Unreport Threat 2 | . 2 . Locate Traps 3 | . 3 . Fabricator Hacks . | . . . Repair Station Hacks . | . . . Recycling Unit Hacks 1 | . 1 . Report Inventory 1 | . 1 . Scanalyzer . | . . . Garrison Access Hacks . | . . . Unauthorized Hacks 7 | . 7 . Terminals 5 | . 5 . Track 2 | . 2 . Botnet 3 | . 3 . Fabricators . | . . . Repair Stations . | . . . Recycling Units 2 | . 2 . Tunnel 2 | . 2 . Scanalyzers . | . . . Garrison Access . | . . . Data Cores Recovered . | . . . Used . | . . . Hacking Detections 5 | . 5 . Full Trace Events . | . . . Feedback Events . | . . . Feedback Blocked . | . . . Robot Schematics Acquired . | . . . Robots Built . | . . . Matter . | . . . Time . | . . . Total Robot Build Rating . | . . . Part Schematics Acquired . | . . . Parts Built . | . . . Matter . | . . . Time . | . . . Total Part Build Rating . | . . . Parts Repaired . | . . . Time . | . . . Parts Recycled . | . . . Recycled Matter . | . . . Retrieved Matter . | . . . Retrieved Components . | . . . Parts Scanalyzed . | . . . Part Schematics Acquired . | . . . Parts Damaged . | . . . Bothacking | -11 -10 -10 ------------ Run | Scr Mat Min Used RIF Installer . | . . . Robots Hacked . | . . . Non-combat . | . . . Combat . | . . . Robot Hacks Applied . | . . . Relay Couplers Released . | . . . Robots Rewired . | . . . Allies Hacked . | . . . Hacks Repelled . | . . . Allies | -11 -10 -10 -------- Run | Scr Mat Min Total Allies . | . . . Largest Group . | . . . Highest-Rated Group . | . . . Highest-Rated Ally . | . . . Total Orders . | . . . Ally Attacks . | . . . Total Damage . | . . . Kills . | . . . Allies Corrupted . | . . . Allies Melted . | . . . Intel | -11 -10 -10 ------- Run | Scr Mat Min Robot Analysis Total 1 | . 1 . Derelict Logs Recovered . | . . . Drone Launches . | . . . Drone Recoveries . | . . . Exploration | -11 -10 -10 ------------- Run | Scr Mat Min Turns Passed 1570 | 63 1120 387 Spaces Moved 819 | 51 569 199 Core 16 | 16 . . Treads . | . . . Legs 803 | 35 569 199 Wheels . | . . . Hover . | . . . Flight . | . . . Fastest Speed 50 | 50 120 150 Average Speed 150 | 98 155 150 Slowest Speed 180 | 120 180 150 Overloaded Moves . | . . . Propulsion Burnouts . | . . . Robots Hopped . | . . . Cave-ins Triggered . | . . . Exploration Rate (%) 47 | 5 89 48 Regions Visited 2 Branch Regions 1 Pre-discovered Areas 2 | . 2 . Known Exits Taken . | . . . Unknown Exits Taken 2 | 1 1 . Scrap Searched . | . . . Spaces Dug 14 | . 14 . Terrain Destroyed 26 | . 26 . Melee 1 | . 1 . Projectile 3 | . 3 . AOE 22 | . 22 . Terrain Rammed . | . . . Walls Destroyed . | . . . Machines Disabled . | . . . Actions | -11 -10 -10 --------- Run | Scr Mat Min Total 1015 | 61 709 245 Wait 43 | . 40 3 Move 817 | 50 568 199 Hop . | . . . Pick Up 26 | 5 19 2 Fast Attach 10 | 6 4 . Attach 4 | . 2 2 Detach 1 | . 1 . Swap 22 | . 14 8 Drop 18 | . 13 5 Fire 66 | . 45 21 Melee 6 | . 3 3 Ram . | . . . Kick . | . . . Crush . | . . . Escape Stasis . | . . . Rewire . | . . . Trap 2 | . . 2 Miscellaneous . | . . . Route ------- -11/Scrapyard -10/Materials (discovered 4 exits: [*Mat x3] / [*Min]) -10/Mines (discovered 1 exit: [*Mat]) History --------- Turn | Location | Event 5 | -11/Scrapyard | Discovered new exit (range 14) 64 | -11/Scrapyard | Entered Materials 141 | -10/Materials | Discovered new exit (range 12) 331 | -10/Materials | Build established: Mutant 337 | -10/Materials | Discovered new exit (range 14) 1113 | -10/Materials | Discovered new exit (range 16) 1158 | -10/Materials | Discovered new exit (range 7) 1184 | -10/Materials | Entered Mines 1198 | -10/Mines | Core integrity fell below 50% 1369 | -10/Mines | Discovered new exit (range 9) 1400 | -10/Mines | Excavation squad dispatched 1400 | -10/Mines | A large section of the Mines collapsed 1431 | -10/Mines | Core integrity fell below 20% 1516 | -10/Mines | Found a hidden stash of uninstalled traps 1571 | -10/Mines | Destroyed by G-47 Trooper with Particle Gun Last Messages --------------- 01454_ Acquired Aluminum Leg. 01454_ Acquired 42 matter. 01454_ T-07 Excavator is excavating. 01457_ Acquired 31 matter. 01459_ T-07 Excavator is excavating. 01460_ Dropped Lgt. Ion Engine. 01461_ Acquired 47 matter. 01470_ Acquired 16 matter. 01490_ K-01 Serf collects debris. 01516_ A stash of uninstalled traps is collected here! 01534_ Hvy. Assault Rifle destroyed. 01536_ Installed Shock Trap. 01551_ G-34 Mercenary triggered Shock Trap. 01551_ The floor emits a surge of raw power. 01560_ K-01 Serf collects debris. 01563_ U-05 Engineer lays Concrete. 01566_ K-01 Serf collects debris. 01566_ G-34 Mercenary destroyed. 01566_ Switching to secondary target: G-47 Trooper. 01567_ U-05 Engineer lays Concrete. Map ----- +----------------------------------------------------+ | ?????????????????????????????????????????????????? | | ???????????????????????????????????#####?????????? | | ??????????????????????????????????## ##????????? | | ??????????????????????????????????# #????????? | | ??????????????????????????????????# ##???????? | | ??????????????????????????????????# ###?????? | | ??????????????????????????????????## ##????? | | ???????????????????????????????????## #????? | | ????????????????????????????????????## ##???? | | ?????????????????????????????????????## ##### | | ??????????????????????????????????????## # | | ??????????????????????#####???????????## | | ?????????????????????## ##????###???# | | ????????????????????## & ##??# ##??# | | ???????????????????## & ^ ### #??##### | | ?????????????????### ^ #??????## ## | | ?????????????????# ##??????## ##? | | ???????????????### ## ###??????## ##?? | | ???????????????# ###### ##???????## ##??? | | ???????????????# ###????## ####?####???# #???? | | ???????????????# ????????## #???## ##??# ##???? | | ??????????????? ??????????# #??## #### #????? | | ?????????????? ??????????# #?## ## #????# | | ?????????????##???????????# ### ##??## | | ????????????????????????### #### | | ????????????????????????#@%!### ## ## | | ?????????????########???# g##### #### ## | | ?????????????# #???# # ##??### ### | | ?????????????# #???# ### # #?????### #?## | | ?????????????# #???# #?# #???????## ##??# | | ?????????????# ##### #?#####????????####???? | | ?????????????# < ![ #?????????????????????? | | ?????????????# #####*!#?????????????????????? | | ?????????????########???# !#?????????????????????? | | ????????????????????????# #?????????????????????? | | ????????????????????????#=[####??????????????????? | | ????????????????????????# != ##?????????????????? | | ???????????????????????## |! #?????????????####? | | ??????????????????????##=! #?????????????# ? | | ?????????????????????### % ##????????????# ? | | ????????????????????#### ; ####?????????????# """ | | ????????????????????# #"####?????????????# ## """ | | ????????????????????# ## ##??????????????? """ | | ????????????????????# #"## #????????????????# | | ????????????????????###= #?????????????????# | | ?????????????????????## #?????????????????# | | ??????????????????????# #?????????????????# | | ??????????????????????## #?????????????????## | | ???????????????????????## ##??????????????????## | | ????????????????????????? #????????????????????## | +----------------------------------------------------+ Best States ------------- Heat Dissipation 39 Energy Generation 10 Energy Capacity 250 Matter Stores 300 Matter Capacity 300 Sight Range 16 Terrain Scan Density 10 Evasion (%) 50 Item Schematics ----------------- None Robot Schematics ------------------ None Fabricated ------------ Nothing Alien Tech Used ----------------- None Achievements -------------- None Challenges ------------ None Game ------ Seed GreatFlakRegenerator Manual? 0 Play Time 00:14:05 Cumulative 191.6 hours Start 2021.09.03 @ 23:58:58 End 2021.09.04 @ 00:11:05 Sessions 1 Manual Loads 0 Difficulty Rogue Special Mode None Game No. 58 Rogue 58 Adventurer 0 Explorer 0 Win Type - Total 10 Types 9/0/1/0/0/0/0/0/0 Lore% 81 Gallery% 86 Achievement% 68 Wizard Run 0 Options --------- ASCII 0 Keyboard 0 Movement Numpad Keybinds 0 Fullscreen 1 Font 14/SmallcapsGlow Map View 84x54 Tactical HUD 1 Map Filters NONE Filters NONE Steam 1 RUN: cd8e4206-34fa-49e1-95f9-d3febe5417a9